bitfinex/quotes_ETHUSD_20241106
["timestamp","ask_amount","ask_price","bid_price","bid_amount"]
[1730884379101,4.57464,2622.4,2621.4,3.81465]
[1730884379320,3.81359,2622.2,2621.3,0.8299]
[1730884379491,3.81359,2622.2,2621.6,3.81434]
[1730884379492,3.81378,2622.1,2621.6,3.81434]
[1730884380023,3.81359,2622.2,2621.5,3.81446]
[1730884380222,3.81396,2622.0,2621.5,3.81446]
[1730884380385,7.62795,2622.0,2621.5,3.81446]
[1730884380583,0.762795,2621.9,2621.5,3.81446]
[1730884380885,3.81396,2622.0,2621.5,3.81446]
[1730884381086,3.81396,2622.0,2621.4,3.81464]
[1730884381087,4.64038,2621.8,2621.3,0.8299]
[1730884381327,4.64038,2621.8,2621.3,4.64472]
[1730884381522,4.64038,2621.8,2621.4,3.81473]
[1730884381692,3.81418,2621.8,2621.4,3.81473]
[1730884381892,0.381418,2621.7,2621.4,3.81473]
[1730884382210,0.381418,2621.7,2621.3,4.64472]
[1730884382719,3.81426,2621.8,2621.3,4.64472]
[1730884382890,7.62813,2621.9,2621.4,3.81473]
[1730884383099,3.81418,2621.8,2621.4,3.81473]
[1730884383642,3.81434,2621.7,2621.3,0.8299]
[1730884383937,0.7896,2621.5,2620.6,0.7789]
[1730884384225,3.81543,2621.0,2620.4,3.81614]
[1730884384385,0.381543,2620.9,2620.5,3.81597]
[1730884384729,0.381543,2620.9,2620.3,0.7789]
[1730884384933,3.81519,2621.1,2620.5,3.81597]
[1730884385289,3.81535,2621.0,2620.5,3.81597]
[1730884385722,3.81535,2621.0,2620.4,3.81612]
[1730884385889,3.81513,2621.2,2620.6,3.81589]
[1730884386082,3.8152,2621.1,2620.6,3.81589]
[1730884386286,0.763033,2621.0,2620.6,3.81589]
[1730884386691,0.763033,2621.0,2620.6,3.81582]
[1730884386891,3.81543,2621.0,2620.5,3.81605]
[1730884387199,3.81604,2620.6,2620.3,0.7789]
[1730884387615,0.8148,2621.0,2620.3,0.7789]
[1730884387820,0.8148,2621.3,2620.7,3.81565]
[1730884388131,4.278067,2621.2,2620.5,3.81592]
[1730884388709,4.278067,2621.2,2620.6,3.81583]
[1730884388916,3.8153,2621.1,2620.6,3.81583]
[1730884389089,3.81558,2620.9,2620.4,6.81611]
[1730884389686,0.462957,2621.2,2620.8,3.8155]
[1730884389888,3.8152,2621.1,2620.6,3.81591]
[1730884390133,7.63052,2621.1,2620.6,3.81591]
[1730884390515,7.63052,2621.1,2620.5,3.81594]
[1730884390691,3.81534,2621.0,2620.5,3.81594]
[1730884390889,3.81557,2620.9,2620.3,4.59514]
[1730884391091,0.763091,2620.8,2620.3,4.59519]
[1730884391306,3.81545,2621.0,2620.6,3.81588]
[1730884391792,3.81514,2621.2,2620.6,7.63168]
[1730884392128,1.785443,2621.3,2620.8,4.64704]
[1730884392129,0.970643,2621.3,2620.8,4.64704]
[1730884392330,0.970643,2621.3,2620.9,3.81544]
[1730884392637,0.970643,2621.3,2620.8,4.6471]
[1730884392802,0.4785493,2621.2,2620.8,4.6471]
[1730884393001,0.4785493,2621.2,2620.8,4.64704]
[1730884393223,4.785563,2621.3,2620.8,4.647]
[1730884393530,0.970643,2621.3,2621.1,3.81508]
[1730884393696,0.970643,2621.3,2620.9,3.81535]
[1730884394712,3.81526,2621.1,2620.6,3.81584]
[1730884394915,0.464136,2621.0,2620.5,0.7614]
[1730884395090,0.8261,2621.2,2620.7,3.81576]
[1730884395730,0.8261,2621.2,2620.7,4.19706]
[1730884396028,4.64122,2621.2,2620.7,4.19706]
[1730884396229,0.8261,2621.2,2620.9,0.3813]
[1730884396628,0.970643,2621.3,2620.9,4.19671]
[1730884396832,0.970643,2621.3,2621.1,3.81506]
[1730884397134,0.970643,2621.3,2621.2,4.60654]
[1730884397337,0.970643,2621.3,2621.2,4.98784]
[1730884397801,0.18423857,2621.3,2621.2,8.61413404]
[1730884398005,0.7812,2622.5,2622.1,4.19492]
[1730884398191,0.459416,2622.5,2622.1,0.3813]
[1730884398396,3.813,2622.7,2622.1,0.3813]
[1730884398735,3.813,2622.7,2622.1,4.19503]
[1730884398941,0.7812,2622.8,2622.1,4.19495]
[1730884399110,4.59392,2622.8,2622.2,4.19487]
[1730884399293,0.7812,2622.8,2622.3,3.81335]
[1730884399494,0.459386,2622.7,2622.3,3.81341]
[1730884399822,0.459386,2622.7,2622.4,0.3813]
[1730884400634,0.459386,2622.7,2622.3,3.81343]
[1730884401130,0.459386,2622.7,2622.4,3.81321]
[1730884401339,0.459386,2622.7,2622.4,7.62643]
[1730884401494,0.7812,2622.8,2622.4,7.62643]
[1730884401690,0.7812,2622.8,2622.0,3.8138]
[1730884401903,3.81323,2622.5,2621.8,3.8141]
[1730884402143,3.81323,2622.5,2621.9,3.81402]
[1730884402432,3.81323,2622.5,2622.0,3.81386]
[1730884402632,0.381323,2622.4,2622.0,3.81386]
[1730884403042,0.381323,2622.4,2621.9,3.81401]
[1730884403537,4.194703,2622.4,2621.8,3.8141]
[1730884403836,0.381323,2622.4,2621.9,3.8139]
[1730884403999,0.381323,2622.4,2622.0,3.81374]
[1730884404338,3.81323,2622.5,2621.9,3.814]
[1730884404503,3.81331,2622.4,2621.8,3.81412]
[1730884404835,0.8185,2622.3,2621.8,3.81412]
[1730884405010,0.463181,2622.2,2621.9,3.81402]
[1730884405707,0.463181,2622.2,2621.7,0.8048]
[1730884405910,0.463181,2622.2,2621.9,3.81394]
[1730884406196,4.57572,2622.6,2622.1,3.81372]
[1730884406412,0.457572,2622.5,2622.0,3.81379]
[1730884406609,0.7627,2622.6,2622.2,3.81359]
[1730884407010,0.397947,2623.2,2622.3,0.7892]
[1730884407252,1.16424354,2623.5,2623.0,3.81228]
[1730884407439,1.66181089,2623.5,2623.3,3.81191]
[1730884407642,4.60706,2623.8,2623.3,3.81191]
[1730884407837,3.81155,2623.6,2623.0,3.81235]
[1730884408151,3.81155,2623.6,2623.0,7.62468]
[1730884408340,4.60706,2623.8,2622.9,0.7561]
[1730884408515,3.81142,2623.7,2623.1,3.8122]
[1730884408715,0.841848,2623.6,2623.1,3.8122]
[1730884409051,0.841848,2623.6,2623.2,3.81211]
[1730884409238,0.7957,2623.8,2623.4,3.81183]
[1730884409447,4.56974,2624.0,2623.5,3.81168]
[1730884410118,4.56974,2624.0,2623.4,3.81176]
[1730884410313,3.81126,2623.9,2623.0,3.8123]
[1730884410517,3.81168,2623.6,2623.0,3.81242]
[1730884410740,0.797,2623.8,2623.0,3.81242]
[1730884410943,3.81152,2623.7,2623.0,3.81242]
[1730884411131,3.81163,2623.6,2623.0,3.81242]
[1730884411343,0.762315,2623.5,2623.0,7.62477]
[1730884411540,4.574025,2623.5,2623.0,3.81235]
[1730884411923,4.574025,2623.5,2623.0,3.81234]
[1730884412453,0.762315,2623.5,2623.2,3.81212]
[1730884412638,3.81152,2623.7,2623.2,3.81212]
[1730884412852,7.62306,2623.7,2623.2,3.81212]
[1730884413013,3.81152,2623.7,2623.2,3.81212]
[1730884413452,3.81141,2623.7,2623.2,3.81212]
[1730884414053,7.62291,2623.7,2623.2,3.81212]
[1730884414263,4.653621,2623.6,2623.1,3.81225]
[1730884414870,3.81172,2623.5,2623.0,3.81237]
[1730884415062,4.653561,2623.6,2623.1,3.8122]
[1730884415370,7.62325,2623.6,2623.0,3.81228]
[1730884415578,3.81157,2623.6,2623.0,3.81228]
[1730884415888,3.81164,2623.6,2623.0,3.81239]
[1730884416034,3.81186,2623.4,2622.9,3.81256]
[1730884416230,0.381186,2623.3,2622.9,3.81256]
[1730884416433,0.381186,2623.3,2622.7,3.81285]
[1730884416679,4.60355,2623.2,2622.5,7.62612]
[1730884416882,4.60355,2623.2,2622.5,3.81305]
[1730884417079,3.81228,2623.1,2622.6,3.81289]
[1730884417283,4.3107536,2623.1,2622.6,3.81289]
[1730884417482,0.4984736,2623.1,2622.5,3.81305]
[1730884417633,3.81248,2623.0,2622.5,7.62621]
[1730884417949,4.3108936,2623.1,2622.6,3.8129]
[1730884418138,0.381186,2623.3,2622.6,0.82]
[1730884418475,4.58886,2623.8,2623.2,4.63199]
[1730884418679,4.58886,2623.8,2623.3,3.81193]
[1730884418882,0.7775,2623.8,2623.3,3.81199]
[1730884419043,0.458874,2623.7,2623.3,3.81199]
[1730884419244,0.458874,2623.7,2623.4,3.81184]
[1730884419567,4.59778,2624.0,2623.5,3.8117]
[1730884419878,4.59778,2624.0,2623.2,0.82]
[1730884419879,3.81134,2623.8,2623.3,3.81191]
[1730884420080,7.62272,2623.8,2623.2,8.44406]
[1730884420243,7.62271,2623.8,2623.3,3.81197]
[1730884420444,3.81157,2623.6,2623.0,3.81231]
[1730884420680,5.007927,2623.5,2623.0,3.81231]
[1730884420981,3.81185,2623.4,2622.9,3.81256]
[1730884421144,3.81185,2623.4,2622.9,7.62512]
[1730884421407,1.196157,2623.5,2623.0,3.81231]
[1730884421603,1.196157,2623.5,2623.1,0.3813]
[1730884421813,0.5007817,2623.4,2623.1,4.19356]
[1730884422199,0.5007817,2623.4,2623.2,4.19343]
[1730884422440,0.5007817,2623.4,2623.2,0.3813]
[1730884422653,0.39817844,2624.4,2623.8,3.81118]
[1730884422944,0.7519,2624.7,2623.9,0.8194]
[1730884422945,4.56193,2624.7,2623.9,0.8194]
[1730884423147,4.56193,2624.7,2624.1,3.81073]
[1730884423443,0.456193,2624.6,2624.0,3.81083]
[1730884423649,3.81032,2624.5,2624.0,7.62172]
[1730884423808,3.81032,2624.5,2624.0,3.81083]
[1730884424143,0.456193,2624.6,2624.0,3.81083]
[1730884424347,0.456193,2624.6,2624.2,3.81058]
[1730884424507,0.7519,2624.7,2624.3,3.81053]
[1730884425322,0.7519,2624.7,2624.2,3.81056]
[1730884425539,0.7519,2624.7,2624.2,7.62115]
[1730884426058,4.56193,2624.7,2624.1,3.81082]
[1730884426205,0.456193,2624.6,2624.1,3.81068]
[1730884426409,0.456193,2624.6,2624.2,3.81057]
[1730884426853,0.456193,2624.6,2624.1,3.81068]
[1730884426854,4.266413,2624.6,2624.1,3.81068]
[1730884427323,3.81025,2624.5,2624.1,3.81068]
[1730884428059,3.81075,2624.2,2623.6,3.81143]
[1730884428222,0.4266443,2624.4,2623.9,3.81104]
[1730884428744,3.81058,2624.3,2623.7,7.62259]
[1730884428945,3.81058,2624.3,2623.8,3.81126]
[1730884430117,3.81084,2624.1,2623.5,4.63327]
[1730884430318,3.81053,2624.3,2623.4,3.81184]
[1730884430625,7.62206,2624.0,2623.4,3.81173]
[1730884430832,3.81097,2624.0,2623.2,4.56874]
[1730884431015,7.62271,2623.8,2623.3,3.81198]
[1730884431216,3.81135,2623.8,2623.3,3.81198]
[1730884431610,3.81135,2623.8,2623.2,4.56872]
[1730884431818,3.81135,2623.8,2623.3,3.81199]
[1730884432144,4.573592,2623.8,2623.3,3.81199]
[1730884432515,0.762242,2623.8,2623.2,0.7567]
[1730884432720,0.762242,2623.8,2622.8,0.58614849]
[1730884432721,3.81187,2623.4,2622.8,3.81258]
[1730884432937,3.81187,2623.4,2622.9,3.81254]
[1730884433839,4.63724,2623.6,2623.0,3.81235]
[1730884433840,3.81175,2623.5,2623.0,3.81235]
[1730884434052,8.468406,2623.5,2623.0,3.81235]
[1730884434248,4.656626,2623.5,2623.0,3.81235]
[1730884434667,4.656626,2623.5,2622.8,3.88886651]
[1730884434974,4.656626,2623.5,2623.0,3.81242]
[1730884435129,4.656626,2623.5,2623.0,7.62475]
[1730884435329,4.656626,2623.5,2623.0,3.81233]
[1730884435725,3.81112,2623.9,2623.3,3.81197]
[1730884435942,3.81143,2623.7,2623.3,3.81197]
[1730884436130,3.81143,2623.7,2623.1,3.81218]
[1730884436467,4.56456,2623.3,2622.8,3.8127]
[1730884436761,4.56456,2623.3,2622.7,4.58744]
[1730884436762,3.81165,2623.6,2622.9,3.81255]
[1730884436952,3.81175,2623.5,2623.0,3.81231]
[1730884437121,3.81186,2623.4,2622.9,3.81255]
[1730884437566,3.81186,2623.4,2622.9,7.62503]
[1730884437932,3.81186,2623.4,2623.0,3.81241]
[1730884438563,3.81179,2623.5,2623.0,3.81241]
[1730884438871,4.649324,2623.5,2623.0,3.81236]
[1730884439173,0.7525,2623.6,2622.7,0.85094743]
[1730884439479,4.56406,2623.6,2623.0,3.81242]
[1730884439769,3.81187,2623.4,2623.0,3.81242]
[1730884439974,3.81187,2623.4,2622.9,3.81256]
[1730884440204,7.62381,2623.4,2622.9,3.81256]
[1730884440406,4.574501,2623.3,2622.8,3.81263]
[1730884440588,0.762381,2623.3,2622.8,3.81262]
[1730884440908,3.81171,2623.5,2623.0,3.8124]
[1730884441087,3.81185,2623.4,2622.9,3.81249]
[1730884441289,3.81199,2623.3,2622.7,4.58743]
[1730884441492,0.7685,2623.1,2622.4,0.7717]
[1730884441694,3.81301,2622.6,2622.1,4.58542]
[1730884442000,3.81325,2622.5,2622.1,0.7717]
[1730884443304,0.8326,2622.6,2622.1,4.58543]
[1730884443506,3.81316,2622.5,2622.1,0.7717]
[1730884443702,3.81324,2622.5,2622.0,3.81386]
[1730884443863,3.81331,2622.4,2621.8,4.63426]
[1730884444192,3.81381,2622.1,2621.6,3.81437]
[1730884444609,7.62767,2622.1,2621.6,3.81437]
[1730884444782,3.81381,2622.1,2621.6,3.81437]
[1730884445115,3.81413,2621.9,2621.5,0.8155]
[1730884445309,4.195543,2621.9,2621.3,3.81487]
[1730884445463,3.81425,2621.8,2621.3,3.81487]
[1730884445668,3.81425,2621.8,2621.3,7.62969]
[1730884445863,3.81351,2622.3,2621.6,3.81433]
[1730884446087,4.659212,2622.4,2621.9,3.81394]
[1730884446294,4.659212,2622.4,2621.7,0.8286]
[1730884446295,4.7357172,2622.4,2621.7,4.64284]
[1730884446502,3.81366,2622.2,2621.7,4.64284]
[1730884446666,0.7505,2622.6,2621.5,3.8145]
[1730884446667,3.81387,2622.1,2621.5,3.8145]
[1730884446867,3.81405,2621.9,2621.5,0.8286]
[1730884447167,4.62517,2622.1,2621.5,3.8146]
[1730884447368,3.81364,2622.2,2621.6,3.81433]
[1730884447673,3.81362,2622.2,2621.7,3.81424]
[1730884448202,3.81375,2622.1,2621.6,3.81433]
[1730884448404,3.8139,2622.0,2621.6,3.81433]
[1730884448719,3.8139,2622.0,2621.5,3.8146]
[1730884449014,3.81228,2623.1,2622.4,3.81323]
[1730884449163,0.816,2623.2,2622.4,0.8196]
[1730884449364,4.59735,2623.4,2622.7,3.81276]
[1730884449677,3.81285,2622.8,2622.2,3.81353]
[1730884449867,4.59825,2622.8,2622.2,3.81353]
[1730884450067,0.7854,2622.8,2622.4,3.81327]
[1730884450269,0.7854,2622.8,2622.2,0.07626354]
[1730884450270,4.59759,2623.2,2622.5,3.81314]
[1730884450501,1.626353,2623.2,2622.5,3.81314]
[1730884450703,3.81252,2623.0,2622.4,3.81328]
[1730884450906,3.81252,2623.0,2622.3,3.81335]
[1730884451103,3.8123,2623.1,2622.6,3.81297]
[1730884451309,7.62466,2623.1,2622.6,0.7501]
[1730884451803,3.8123,2623.1,2622.6,0.7501]
[1730884452012,4.27207,2623.1,2622.6,0.7501]
[1730884452513,3.81179,2623.5,2622.9,3.81257]
[1730884452714,3.81179,2623.5,2623.0,3.81233]
[1730884453017,3.81143,2623.7,2623.0,3.81233]
[1730884453364,3.81143,2623.7,2622.7,3.88907791]
[1730884453365,4.61883,2623.8,2623.3,3.81198]
[1730884453570,4.654412,2623.7,2623.1,3.81214]
[1730884453768,4.654412,2623.7,2623.1,4.61898]
[1730884453769,0.843002,2623.7,2623.1,4.61898]
[1730884454009,0.843002,2623.7,2623.2,3.81201]
[1730884454192,4.61876,2623.8,2623.3,3.81191]
[1730884454572,0.8075,2623.8,2623.2,3.81201]
[1730884454771,0.8075,2623.8,2623.3,3.81187]
[1730884454997,0.8075,2623.8,2623.4,3.81182]
[1730884455521,0.8075,2623.8,2623.0,3.81231]
[1730884455695,3.81211,2623.3,2622.8,3.81261]
[1730884455897,0.8064,2623.2,2622.8,3.81261]
[1730884456220,4.61856,2623.2,2622.7,3.81284]
[1730884456775,4.61856,2623.2,2622.6,3.81291]
[1730884456776,3.81229,2623.1,2622.6,3.81291]
[1730884457078,0.461869,2623.0,2622.6,3.81291]
[1730884457270,0.461869,2623.0,2622.5,0.825]
[1730884457481,3.81185,2623.4,2622.9,3.81249]
[1730884457685,4.6165,2623.5,2622.8,3.81271]
[1730884457915,3.81193,2623.4,2622.8,7.62535]
[1730884458123,3.81193,2623.4,2622.9,3.81252]
[1730884458578,0.8047,2623.5,2622.7,3.81285]
[1730884458774,3.81184,2623.4,2622.7,3.81285]
[1730884458979,0.8155,2623.1,2622.6,3.8129]
[1730884459214,4.6278,2623.1,2622.6,3.8129]
[1730884459414,4.6278,2623.1,2622.3,0.12692153]
[1730884459415,0.8155,2623.1,2622.2,3.81349]
[1730884459585,3.81295,2622.7,2622.2,3.81358]
[1730884459795,0.01,2623.2,2622.2,3.81358]
[1730884459796,4.62853,2622.6,2622.2,3.81358]
[1730884459972,3.8132,2622.5,2622.0,3.81379]
[1730884460373,3.81315,2622.5,2622.0,3.81379]
[1730884460598,0.844168,2622.4,2622.0,3.81379]
[1730884460816,4.657498,2622.4,2621.8,3.81405]
[1730884461011,3.81345,2622.3,2621.8,3.81405]
[1730884461191,4.657498,2622.4,2621.8,3.81405]
[1730884461391,0.844168,2622.4,2622.0,3.81385]
[1730884461696,0.8155,2622.6,2622.2,3.81348]
[1730884461895,0.8155,2622.6,2622.3,3.8134]
[1730884462100,0.8155,2622.6,2622.2,3.81348]
[1730884462285,0.8155,2622.6,2622.4,3.81321]
[1730884462495,0.8155,2622.6,2622.2,3.8135]
[1730884462702,0.462849,2622.5,2622.2,3.8135]
[1730884464003,0.462849,2622.5,2622.1,0.07627111]
[1730884464209,0.8155,2622.6,2622.0,3.81378]
[1730884464832,3.81318,2622.5,2622.0,3.81387]
[1730884465610,4.62853,2622.6,2622.1,3.81373]
[1730884465935,0.8155,2622.6,2621.9,3.81402]
[1730884466104,3.81323,2622.5,2621.8,7.62834]
[1730884466313,3.81323,2622.5,2622.0,3.81376]
[1730884466839,3.81323,2622.5,2622.1,3.81369]
[1730884467339,3.81323,2622.5,2622.0,3.81376]
[1730884467524,3.81323,2622.5,2622.0,7.62756]
[1730884467724,0.5091561,2622.4,2622.0,7.62756]
[1730884467928,0.5091561,2622.4,2622.1,3.81367]
[1730884468300,3.81316,2622.5,2622.1,3.81367]
[1730884468503,0.815,2622.5,2620.9,1.2558662]
[1730884468807,0.815,2621.7,2621.2,3.81491]
[1730884469114,4.277395,2621.6,2621.1,3.81517]
[1730884469500,4.277395,2621.6,2621.1,7.63028]
[1730884470441,4.277395,2621.6,2621.1,3.81511]
[1730884470735,0.462925,2621.6,2621.2,3.81503]
[1730884470935,0.815,2621.7,2621.4,3.81473]
[1730884471332,0.815,2621.7,2620.9,0.7915]
[1730884471500,0.815,2621.7,2621.4,3.81468]
[1730884473437,1.659327,2621.7,2621.4,7.62937]
[1730884473613,0.844327,2621.7,2621.4,3.81468]
[1730884473819,3.81412,2621.9,2621.4,3.81468]
[1730884474012,0.8061,2622.0,2621.4,3.81475]
[1730884474215,0.8061,2622.0,2621.5,3.8146]
[1730884475198,0.8061,2622.0,2621.6,3.81439]
[1730884475398,0.8061,2622.0,2621.6,3.81438]
[1730884475637,4.60309,2622.2,2621.7,3.81421]
[1730884475843,0.841664,2622.1,2621.7,3.81421]
[1730884476842,4.655464,2622.1,2621.6,3.81444]
[1730884477402,4.655464,2622.1,2621.1,3.94172665]
[1730884477403,3.814,2622.0,2621.3,3.81488]
[1730884477611,3.81433,2621.7,2621.0,0.8051]
[1730884477821,3.81496,2621.3,2620.6,7.63165]
[1730884478019,3.81518,2621.2,2620.4,4.58999]
[1730884478264,0.7547,2621.1,2620.6,3.81581]
[1730884478548,3.81533,2621.0,2620.4,4.58997]
[1730884478750,1.136218,2621.1,2620.6,3.81584]
[1730884478937,4.951438,2621.1,2620.4,0.7739]
[1730884479108,4.951438,2621.1,2620.6,3.81584]
[1730884479309,0.8766608,2621.0,2620.6,3.81584]
[1730884480621,0.8766608,2621.0,2620.7,3.81569]
[1730884480915,0.8766608,2621.0,2620.7,3.81577]
[1730884481152,0.7547,2621.1,2620.7,3.81577]
[1730884481312,0.7547,2621.1,2620.8,3.8155]
[1730884482357,0.7547,2621.1,2620.7,3.81577]
[1730884482723,4.56991,2621.1,2620.7,3.81577]
[1730884482943,8.38518,2621.1,2620.6,6.81591]
[1730884483152,0.838518,2621.0,2620.6,6.81591]
[1730884483423,4.653868,2621.0,2620.6,3.0]
[1730884483634,0.838518,2621.0,2620.6,6.8159]
[1730884483973,0.838518,2621.0,2620.7,3.81571]
[1730884484130,0.7547,2621.1,2620.7,3.81571]
[1730884484327,0.7547,2621.1,2620.8,3.81556]
[1730884484555,0.7547,2621.1,2620.9,3.81547]
[1730884485841,4.56997,2621.1,2620.6,6.8159]
[1730884486341,0.7547,2621.1,2620.7,3.81574]
[1730884486543,0.456997,2621.0,2620.7,3.81574]
[1730884487185,0.7834,2620.3,2619.7,3.81712]
[1730884487355,3.81672,2620.1,2619.6,3.81737]
[1730884487538,3.81672,2620.1,2619.5,3.81742]
[1730884487539,3.8168,2620.0,2619.5,3.81742]
[1730884488281,3.8168,2620.0,2619.5,7.63485]
[1730884488445,3.8168,2620.0,2619.5,3.81742]
[1730884488648,0.7615,2619.9,2619.3,3.81771]
[1730884488971,4.27491,2619.8,2619.3,3.81771]
[1730884489352,4.27491,2619.8,2619.1,4.64656]
[1730884489544,3.81734,2619.7,2619.1,3.81796]
[1730884489846,3.81832,2619.0,2618.4,3.81901]
[1730884490157,4.59063,2619.1,2618.4,3.81901]
[1730884490358,0.7535,2618.5,2617.7,3.82002]
[1730884490558,0.7535,2618.5,2618.0,3.81966]
[1730884490791,1.210734,2618.5,2618.1,3.81946]
[1730884490960,0.7535,2618.5,2618.1,3.81946]
[1730884491548,0.7535,2618.5,2618.1,7.63894]
[1730884491770,0.7535,2618.5,2618.1,3.81946]
[1730884492196,0.7535,2618.5,2617.9,3.81977]
[1730884492345,3.8195,2618.2,2617.5,3.82043]
[1730884492550,0.38195,2618.1,2617.8,3.81999]
[1730884492768,0.7535,2618.5,2617.8,3.81999]
[1730884492965,0.7535,2618.5,2617.8,7.63987]
[1730884493165,4.57249,2618.5,2617.8,3.81988]
[1730884493763,0.7674,2618.4,2617.8,3.81988]
[1730884494013,4.58653,2618.4,2617.8,3.81988]
[1730884494162,0.458653,2618.3,2617.8,3.81988]
[1730884496183,0.7674,2618.4,2618.1,3.81955]
[1730884496921,0.7674,2618.4,2618.2,3.81941]
[1730884497418,0.7674,2618.4,2618.2,3.81931]
[1730884497779,0.7674,2618.4,2618.2,7.63861]
[1730884497996,0.7674,2618.4,2618.2,3.8193]
[1730884499222,0.7905,2618.7,2618.4,3.8191]
[1730884499806,0.7905,2619.1,2618.0,0.7791]
[1730884500012,0.7905,2619.1,2618.6,3.81875]
[1730884500311,3.81835,2619.0,2618.4,3.81903]
[1730884500513,3.81835,2619.0,2618.5,3.81895]
[1730884500734,0.460885,2618.9,2618.5,3.81895]
[1730884500899,0.7905,2619.1,2618.5,3.81889]
[1730884501105,4.6086,2619.1,2618.6,3.81873]
[1730884501334,4.6086,2619.1,2618.5,3.81889]
[1730884501505,3.81832,2619.0,2618.3,3.81918]
[1730884501693,4.27918,2619.0,2618.5,3.81897]
[1730884502337,3.81843,2618.9,2618.3,3.81917]
[1730884502835,3.81861,2618.8,2618.3,3.81917]
[1730884503000,7.63729,2618.8,2618.3,3.81917]
[1730884503192,0.7829,2618.7,2618.2,6.81938]
[1730884503391,0.7829,2618.7,2618.3,3.8192]
[1730884503392,1.243051,2618.7,2618.3,3.8192]
[1730884503621,0.7829,2618.7,2618.3,3.8192]
[1730884504093,0.46086,2619.0,2618.6,3.81883]
[1730884504410,0.7511,2619.0,2618.8,3.81852]
[1730884504591,0.7751,2619.2,2619.0,3.81813]
[1730884505091,0.7751,2619.2,2618.9,3.81831]
[1730884505436,0.7751,2619.2,2618.9,3.81828]
[1730884505825,0.7517,2619.5,2619.1,3.8181]
[1730884506050,1.208618,2619.5,2619.1,3.8181]
[1730884506334,1.208618,2619.5,2619.1,7.63613]
[1730884506495,1.208618,2619.5,2619.1,3.81803]
[1730884506690,1.208618,2619.5,2619.2,3.81795]
[1730884506904,0.7517,2619.5,2619.1,3.818]
[1730884507127,0.7517,2619.5,2619.3,3.8177]
[1730884507435,0.7866,2619.8,2619.3,3.8177]
[1730884507801,0.7866,2619.8,2619.1,4.59275]
[1730884508007,0.7866,2620.1,2619.2,3.89430028]
[1730884508401,0.7866,2620.0,2619.5,3.81738]
[1730884509134,0.7866,2620.0,2619.6,3.81724]
[1730884509337,0.7866,2620.0,2619.5,3.81738]
[1730884509516,3.81701,2619.9,2619.3,7.63544]
[1730884509726,0.842043,2619.9,2619.5,3.81749]
[1730884510404,4.659033,2619.9,2619.4,3.81764]
[1730884510604,0.842043,2619.9,2619.5,3.8175]
[1730884510925,0.842043,2619.9,2619.3,3.81772]
[1730884511130,0.842043,2619.9,2619.5,3.81747]
[1730884511919,4.658993,2619.9,2619.3,3.81769]
[1730884512251,1.527032,2620.7,2619.8,3.81699]
[1730884512558,0.7695,2620.6,2619.9,0.07634153]
[1730884512842,0.7695,2620.6,2619.7,7.6438]
[1730884513053,3.81643,2620.3,2619.8,3.0]
[1730884513206,0.381643,2620.3,2619.9,3.81693]
[1730884513632,4.58542,2620.6,2620.0,3.81679]
[1730884513948,4.58542,2620.6,2620.1,3.81662]
[1730884514108,3.81626,2620.4,2619.9,3.81693]
[1730884514310,3.8162,2620.5,2619.9,3.81686]
[1730884514505,7.63237,2620.5,2619.9,3.81685]
[1730884514736,0.840187,2620.4,2619.9,3.81685]
[1730884515467,0.840187,2620.4,2620.1,3.8165]
[1730884515626,4.5855,2620.6,2620.1,3.8165]
[1730884516428,3.81606,2620.5,2620.1,3.8165]
[1730884516768,4.58545,2620.6,2620.1,3.81664]
[1730884517072,0.840131,2620.5,2620.1,3.81664]
[1730884517263,4.656201,2620.5,2620.0,3.81676]
[1730884517572,4.656201,2620.5,2620.1,3.81663]
[1730884517776,0.840131,2620.5,2620.1,3.81663]
[1730884517950,0.840131,2620.5,2620.0,3.81678]
[1730884518152,4.656211,2620.5,2620.0,3.81678]
[1730884520222,0.7695,2620.6,2620.2,3.81648]
[1730884521073,0.7695,2620.6,2620.3,3.81628]
[1730884521595,0.7695,2620.6,2620.2,7.63291]
[1730884521741,0.7695,2620.6,2620.2,3.81643]
[1730884522365,0.7695,2620.6,2620.2,7.63285]
[1730884522667,1.609598,2620.6,2620.2,3.81642]
[1730884522890,1.609598,2620.6,2620.3,3.81634]
[1730884523448,0.840098,2620.6,2620.4,3.81619]
[1730884523778,3.81569,2620.8,2620.3,3.81628]
[1730884524089,3.81564,2620.8,2620.2,3.81641]
[1730884524249,4.62288,2620.9,2620.4,3.81612]
[1730884524579,0.8073,2620.9,2620.5,3.81606]
[1730884525084,0.8073,2620.9,2620.5,3.81599]
[1730884525267,0.46227,2620.8,2620.5,3.81599]
[1730884525485,0.46227,2620.8,2620.4,3.81611]
[1730884525974,0.46227,2620.8,2620.5,3.81606]
[1730884526480,0.8073,2620.9,2620.5,3.81606]
[1730884527650,4.62278,2620.9,2620.5,3.81606]
[1730884528996,0.8073,2620.9,2620.5,3.81606]
[1730884529201,4.57008,2621.1,2620.5,3.81606]
[1730884529357,3.81499,2621.3,2620.8,3.81551]
[1730884529562,3.81499,2621.3,2620.3,3.7673]
[1730884529563,4.56961,2621.4,2620.9,3.81541]
[1730884530376,3.81492,2621.3,2620.9,3.81541]
[1730884530713,8.38446,2621.4,2620.9,3.81541]
[1730884530998,3.8144,2621.7,2621.2,3.81497]
[1730884531204,3.81454,2621.6,2621.1,3.81519]